bitfinex-derivatives/quotes_BTCF0:USTF0_20250121
["timestamp","ask_amount","ask_price","bid_price","bid_amount"]
[1737491804455,0.08250005,106230.0,106220.0,0.188278]
[1737491804655,0.08250005,106230.0,106220.0,0.549078]
[1737491805059,0.08250005,106230.0,106220.0,0.64321779]
[1737491805265,0.549028,106250.0,106220.0,0.49483979]
[1737491805565,0.54916861,106250.0,106220.0,0.5520494]
[1737491805765,0.54916861,106250.0,106240.0,0.188243]
[1737491806170,0.36094061,106250.0,106240.0,0.188243]
[1737491806664,0.54916561,106250.0,106240.0,0.188243]
[1737491807169,0.54916561,106250.0,106230.0,0.38477373]
[1737491807463,0.54916561,106250.0,106230.0,0.4788958]
[1737491807664,0.3608,106240.0,106230.0,0.4788958]
[1737491808569,0.549043,106240.0,106220.0,0.58911261]
[1737491808774,0.549043,106240.0,106220.0,0.68911261]
[1737491808959,0.549043,106240.0,106220.0,0.78324354]
[1737491809266,0.54906,106230.0,106220.0,0.00014061]
[1737491809866,0.54906,106230.0,106220.0,0.18841861]
[1737491813268,0.54906,106230.0,106220.0,0.19841861]
[1737491813464,0.54906,106230.0,106220.0,0.18841861]
[1737491813864,0.54906,106230.0,106220.0,0.24841861]
[1737491815167,0.54906,106230.0,106220.0,0.06014061]
[1737491816074,0.54906,106230.0,106180.0,0.50616]
[1737491816075,0.047069,106220.0,106180.0,0.50616]
[1737491816272,0.188331,106190.0,106180.0,0.834503]
[1737491816573,0.188317,106200.0,106190.0,0.188326]
[1737491817669,0.36094061,106210.0,106200.0,0.188314]
[1737491817859,0.54923661,106210.0,106200.0,0.188314]
[1737491818671,0.36094061,106210.0,106200.0,0.188314]
[1737491818868,0.00014061,106210.0,106200.0,0.188314]
[1737491819063,0.3608,106220.0,106200.0,0.29598497]
[1737491819268,0.49831526,106230.0,106210.0,0.19652473]
[1737491819576,0.13751526,106230.0,106220.0,0.188278]
[1737491819976,0.13751526,106230.0,106220.0,0.208278]
[1737491820372,0.13751526,106230.0,106220.0,0.30241779]
[1737491821681,0.13751526,106230.0,106220.0,0.403501]
[1737491821869,0.54918561,106240.0,106230.0,0.188261]
[1737491822073,0.54918561,106240.0,106230.0,1.688261]
[1737491822375,0.188278,106220.0,106210.0,0.00014061]
[1737491822578,0.549078,106220.0,106210.0,0.20014061]
[1737491822778,0.549078,106220.0,106210.0,0.00014061]
[1737491823282,0.74560273,106220.0,106210.0,0.00014061]
[1737491823574,0.549078,106220.0,106210.0,0.18843661]
[1737491824471,0.3608,106220.0,106210.0,0.18843661]
[1737491824770,0.00014061,106240.0,106230.0,0.188261]
[1737491825076,0.00014061,106240.0,106230.0,0.74558573]
[1737491825469,0.00014061,106240.0,106230.0,0.83973439]
[1737491825670,0.3608,106250.0,106230.0,0.75712934]
[1737491825875,0.3608,106250.0,106240.0,0.188243]
[1737491826075,0.188243,106240.0,106230.0,0.65470895]
[1737491826277,0.13751526,106230.0,106200.0,0.085978]
[1737491826473,0.54908,106220.0,106210.0,0.188287]
[1737491826669,0.13751526,106230.0,106210.0,0.08]
[1737491826670,0.68658326,106230.0,106210.0,0.08]
[1737491826979,0.13765587,106230.0,106220.0,0.188278]
[1737491827172,0.188278,106220.0,106210.0,0.29463152]
[1737491827475,0.188278,106220.0,106210.0,0.268288]
[1737491827672,0.549078,106220.0,106210.0,0.08]
[1737491827981,0.549078,106220.0,106200.0,0.26585061]
[1737491827982,0.188296,106210.0,106200.0,0.26585061]
[1737491828273,0.549096,106210.0,106200.0,0.24845061]
[1737491830375,0.549096,106210.0,106200.0,1.50014061]
[1737491830778,0.549096,106210.0,106200.0,0.00014061]
[1737491831875,0.188331,106190.0,106180.0,0.694507]
[1737491832479,0.188331,106190.0,106180.0,2.194507]
[1737491834480,0.36094061,106200.0,106180.0,2.00616]
[1737491834676,0.00014061,106200.0,106190.0,0.74565573]
[1737491834984,0.13751526,106220.0,106210.0,0.188296]
[1737491835182,0.13751526,106220.0,106210.0,0.549096]
[1737491835573,0.13751526,106220.0,106210.0,0.84640911]
[1737491835777,0.13751526,106220.0,106210.0,0.85640911]
[1737491835980,0.13751526,106220.0,106210.0,0.9505755]
[1737491836284,0.30253357,106220.0,106210.0,0.9505755]
[1737491836785,0.00014061,106230.0,106220.0,0.188278]
[1737491836986,0.19252136,106250.0,106220.0,0.76732473]
[1737491837280,0.19252136,106250.0,106240.0,0.549043]
[1737491837479,0.22002441,106260.0,106240.0,0.91704]
[1737491837679,0.22002441,106260.0,106250.0,0.38474973]
[1737491837871,0.22002441,106260.0,106250.0,0.188225]
[1737491838075,0.76904041,106260.0,106240.0,0.78861679]
[1737491838383,0.58082441,106260.0,106250.0,0.188225]
[1737491838983,0.76903141,106260.0,106250.0,0.188225]
[1737491839974,0.549007,106260.0,106250.0,0.188225]
[1737491841384,0.36094061,106270.0,106240.0,2.45344061]
[1737491841586,0.00014061,106270.0,106260.0,0.188207]
[1737491841986,0.00014061,106270.0,106260.0,0.28232021]
[1737491843579,0.00014061,106270.0,106260.0,0.188207]
[1737491844285,0.00014061,106270.0,106260.0,0.28231136]
[1737491844989,0.00014061,106270.0,106260.0,0.38344723]
[1737491845182,0.367641,106300.0,106290.0,0.188154]
[1737491845183,0.728441,106300.0,106290.0,0.188154]
[1737491845382,0.4608,106300.0,106290.0,0.188154]
[1737491845583,0.4608,106300.0,106290.0,0.38467873]
[1737491845789,0.4608,106300.0,106290.0,1.88467873]
[1737491846178,0.1,106300.0,106290.0,1.97875653]
[1737491847283,0.1,106300.0,106290.0,1.5]
[1737491847484,0.4608,106300.0,106280.0,0.18831061]
[1737491847687,0.548954,106290.0,106280.0,0.18831061]
[1737491848387,0.3608,106290.0,106280.0,0.00014061]
[1737491848579,0.548954,106290.0,106280.0,0.00014061]
[1737491848785,0.587554,106290.0,106280.0,0.00014061]
[1737491849787,0.587554,106290.0,106280.0,0.18831261]
[1737491852095,0.548954,106290.0,106280.0,0.18814525]
[1737491852687,0.3608,106290.0,106280.0,0.18814525]
[1737491852890,1e-06,106300.0,106290.0,0.188154]
[1737491853097,0.46356214,106350.0,106300.0,0.047033]
[1737491853098,0.1152,106340.0,106300.0,0.047033]
[1737491853391,0.1152,106340.0,106330.0,0.38460873]
[1737491853591,0.76888541,106350.0,106330.0,0.19652473]
[1737491853897,0.16663052,106370.0,106360.0,0.18803]
[1737491854087,0.16663052,106370.0,106360.0,0.90963]
[1737491854790,0.188031,106360.0,106350.0,0.00014061]
[1737491855285,0.270331,106360.0,106350.0,0.00014061]
[1737491857400,0.188048,106350.0,106340.0,0.3608]
[1737491857596,0.188048,106350.0,106340.0,0.548866]
[1737491858792,0.00014061,106360.0,106350.0,0.188048]
[1737491858993,0.00014061,106360.0,106350.0,0.548848]
[1737491859392,0.18817061,106360.0,106350.0,0.548848]
[1737491859787,0.00014061,106360.0,106350.0,0.548848]
[1737491860188,0.00014061,106360.0,106350.0,2.048848]
[1737491861399,0.00014061,106360.0,106350.0,0.548848]
[1737491861885,0.00014061,106360.0,106350.0,2.048848]
[1737491862491,0.00014061,106360.0,106350.0,2.14287272]
[1737491862697,0.0395,106380.0,106370.0,0.188013]
[1737491862894,0.0784,106390.0,106380.0,0.187995]
[1737491863094,0.0784,106390.0,106380.0,0.548795]
[1737491863297,0.0392,106390.0,106380.0,0.548795]
[1737491863598,0.28937671,106400.0,106390.0,0.187977]
[1737491863797,0.28937671,106400.0,106390.0,0.548777]
[1737491864193,0.28937671,106400.0,106390.0,0.74530173]
[1737491864998,0.10141071,106400.0,106390.0,0.74530173]
[1737491865899,0.28937071,106400.0,106390.0,0.74530173]
[1737491869697,0.28937071,106400.0,106390.0,0.67596785]
[1737491872201,0.10141071,106400.0,106390.0,0.67596785]
[1737491872503,0.28937071,106400.0,106390.0,0.67596785]
[1737491873598,0.28937071,106400.0,106390.0,2.17596785]
[1737491873800,0.1,106400.0,106390.0,2.3031587]
[1737491873996,0.00014061,106410.0,106400.0,0.18796]
[1737491874194,0.00014061,106410.0,106400.0,0.8031417]
[1737491876100,0.18808261,106410.0,106400.0,0.67595085]
[1737491877402,0.18808261,106410.0,106400.0,0.67551836]
[1737491878904,0.00014061,106410.0,106400.0,0.89668975]
[1737491879101,0.2976502,106430.0,106420.0,0.187925]
[1737491879299,0.2976502,106430.0,106420.0,0.67591585]
[1737491879494,0.2738402,106440.0,106420.0,0.48799085]
[1737491879700,0.187937,106420.0,106410.0,0.48799085]
[1737491880001,0.187937,106420.0,106410.0,0.3608]
[1737491880403,0.187942,106410.0,106400.0,0.54890061]
[1737491880708,0.046982,106420.0,106400.0,0.54890061]
[1737491880709,0.187931,106420.0,106410.0,0.187933]
[1737491881002,0.187931,106420.0,106410.0,0.67592385]
[1737491881198,0.187931,106420.0,106410.0,0.548733]
[1737491881603,0.24550651,106430.0,106420.0,0.187925]
[1737491881807,0.24550651,106430.0,106420.0,0.67591585]
[1737491882011,9.151e-05,106430.0,106420.0,0.67591585]
[1737491882498,0.1097402,106440.0,106420.0,0.60195373]
[1737491882694,0.1097402,106440.0,106430.0,0.67589785]
[1737491883609,0.2976292,106440.0,106430.0,0.67589785]
[1737491883998,0.2976292,106440.0,106430.0,0.548707]
[1737491884309,0.2976292,106440.0,106430.0,0.67589785]
[1737491884898,0.2976292,106440.0,106430.0,0.548707]
[1737491885097,0.1097402,106440.0,106430.0,0.67589785]
[1737491885498,0.2976292,106440.0,106430.0,0.67589785]
[1737491885899,0.1097402,106440.0,106430.0,0.74463224]
[1737491886408,0.1097402,106440.0,106430.0,0.83858629]
[1737491886604,0.1097402,106440.0,106430.0,1.34390629]
[1737491886809,0.13717525,106450.0,106440.0,0.187889]
[1737491887010,0.13717525,106450.0,106440.0,0.548689]
[1737491887808,0.13717525,106450.0,106440.0,0.64263422]
[1737491888210,0.13717525,106450.0,106440.0,0.548689]
[1737491890506,0.13717525,106450.0,106440.0,0.64263422]
[1737491890706,0.13717525,106450.0,106440.0,0.75323422]
[1737491890907,0.13717525,106450.0,106440.0,0.85521424]
[1737491891108,0.13717525,106450.0,106430.0,0.965496]
[1737491891109,0.13717525,106450.0,106430.0,0.3608]
[1737491891310,0.187907,106430.0,106420.0,0.36094061]
[1737491891611,0.244099,106440.0,106430.0,0.187907]
[1737491891919,0.244099,106440.0,106430.0,0.548707]
[1737491892414,0.244099,106440.0,106430.0,0.3608]
[1737491893207,0.244099,106440.0,106430.0,0.548707]
[1737491896719,0.38127425,106440.0,106430.0,0.3608]
[1737491898213,0.38127425,106440.0,106430.0,0.548707]
[1737491899021,0.38127425,106440.0,106430.0,2.048707]
[1737491899215,0.38127425,106440.0,106430.0,0.548707]
[1737491900517,0.38127425,106440.0,106420.0,0.00062061]
[1737491900518,0.187907,106430.0,106420.0,0.00062061]
[1737491900727,0.18796,106400.0,106390.0,9.781e-05]
[1737491900908,0.187995,106380.0,106370.0,0.57976422]
[1737491901314,0.187995,106380.0,106370.0,0.75255422]
[1737491901622,0.38392024,106380.0,106370.0,0.39175422]
[1737491901822,0.74481769,106380.0,106370.0,0.39175422]
[1737491903023,0.18809245,106380.0,106370.0,0.57976722]
[1737491903329,0.18809245,106380.0,106370.0,0.75255422]
[1737491904013,0.74481769,106380.0,106370.0,0.39175422]
[1737491904315,0.188013,106370.0,106360.0,0.00014061]
[1737491904514,0.1881209,106370.0,106360.0,0.00014061]
[1737491908037,0.31545953,106370.0,106360.0,0.00014061]
[1737491908536,0.31535163,106370.0,106360.0,0.00014061]
[1737491908734,0.32548998,106370.0,106360.0,0.00014061]
[1737491908939,0.32548985,106370.0,106360.0,0.00014061]
[1737491909238,0.32537357,106370.0,106360.0,0.00014061]
[1737491911429,0.188013,106370.0,106360.0,0.36094061]
[1737491911638,0.18812997,106370.0,106360.0,0.54897161]
[1737491912031,0.00011697,106370.0,106360.0,2.17631024]
[1737491912332,0.00014061,106390.0,106380.0,0.187995]
[1737491912634,0.00014061,106390.0,106380.0,1.03693363]
[1737491913142,0.00014061,106390.0,106380.0,2.65143363]
[1737491913336,0.00014061,106390.0,106380.0,2.524095]
[1737491914237,0.18811861,106390.0,106380.0,1.024095]
[1737491914442,0.18811861,106390.0,106360.0,0.91932061]
[1737491914443,0.187995,106380.0,106360.0,0.91932061]
[1737491914737,0.188013,106370.0,106360.0,0.50562061]
[1737491914937,0.188013,106370.0,106360.0,0.00014061]
[1737491915340,0.188013,106370.0,106360.0,0.36094061]
[1737491916742,0.188013,106370.0,106360.0,0.54897161]
[1737491918837,0.188013,106370.0,106360.0,0.00014061]
[1737491919034,0.31535163,106370.0,106360.0,0.00014061]
[1737491919235,0.36945163,106370.0,106360.0,0.00014061]
[1737491919436,0.242113,106370.0,106360.0,0.36094061]
[1737491920248,0.188013,106370.0,106360.0,0.54897161]
[1737491920748,0.188013,106370.0,106360.0,2.04897161]
[1737491921342,0.188013,106370.0,106360.0,0.54897161]
[1737491922945,0.188013,106370.0,106360.0,0.36094061]
[1737491923147,0.67615163,106370.0,106360.0,0.00014061]
[1737491923651,0.78995163,106370.0,106360.0,0.00014061]
[1737491926648,0.27074778,106370.0,106360.0,0.00014061]
[1737491926847,0.27074778,106370.0,106360.0,0.31551024]
[1737491927146,0.39808641,106370.0,106360.0,0.00014061]
[1737491927352,0.21007341,106370.0,106350.0,0.54883887]
[1737491927657,0.188031,106360.0,106350.0,0.6761775]
[1737491928456,0.27075378,106370.0,106360.0,0.188031]
[1737491928657,0.27089439,106370.0,106360.0,0.84816963]
[1737491928956,0.08287539,106370.0,106360.0,0.720831]
[1737491929151,0.27088839,106370.0,106360.0,0.1148]
[1737491929351,0.18815361,106370.0,106360.0,0.0579]
[1737491929557,0.18815361,106370.0,106360.0,0.606731]
[1737491929856,0.18815361,106370.0,106360.0,0.4187]
[1737491930048,0.89608324,106370.0,106340.0,0.00014061]
[1737491930350,0.89608324,106370.0,106340.0,0.36094061]
[1737491930351,0.188048,106350.0,106340.0,0.36094061]
[1737491931452,0.00014061,106370.0,106350.0,0.047011]
[1737491931653,0.18815361,106370.0,106360.0,0.3608]
[1737491931956,0.18815361,106370.0,106360.0,0.548831]
[1737491932151,0.18815361,106370.0,106360.0,1.03696963]
[1737491932356,0.00014061,106370.0,106360.0,1.03696963]
[1737491932557,0.188031,106360.0,106350.0,0.548846]
[1737491933556,0.32520625,106360.0,106350.0,0.548846]
[1737491934060,0.32520625,106360.0,106350.0,0.67618463]
[1737491935152,0.188048,106350.0,106340.0,0.18819861]
[1737491935651,0.13717525,106360.0,106340.0,0.17449424]
[1737491935854,0.13717525,106360.0,106350.0,0.67618663]
[1737491936163,0.188031,106360.0,106350.0,0.73618063]
[1737491936457,0.35279831,106370.0,106360.0,0.188031]
[1737491937048,0.35279831,106370.0,106360.0,0.548831]
[1737491937649,0.16477931,106370.0,106360.0,0.77018551]
[1737491937845,0.16477931,106370.0,106360.0,0.84768551]
[1737491938850,0.18815361,106370.0,106360.0,0.548831]
[1737491939054,0.00014061,106370.0,106350.0,0.3608]
[1737491939261,0.188031,106360.0,106350.0,0.188045]
[1737491939559,0.188048,106350.0,106340.0,0.18819961]
[1737491940355,0.188048,106350.0,106340.0,0.54899961]
[1737491941556,1.03698663,106350.0,106340.0,6.1e-07]
[1737491941856,1.03698663,106350.0,106320.0,0.22479656]
[1737491941857,0.188084,106330.0,106320.0,0.22479656]
[1737491942153,0.188084,106330.0,106310.0,0.00149846]
[1737491942353,0.188084,106330.0,106320.0,0.188101]
[1737491942750,0.188101,106320.0,106310.0,0.00163907]
[1737491943157,0.188101,106320.0,106310.0,0.36243907]
[1737491943554,0.188101,106320.0,106310.0,0.55055807]
[1737491944265,0.548901,106320.0,106310.0,0.00163907]
[1737491946756,0.59065963,106330.0,106310.0,0.36243907]
[1737491946957,0.188101,106320.0,106310.0,0.36243907]
[1737491947257,0.188101,106320.0,106310.0,0.55055807]
[1737491947861,0.188101,106320.0,106310.0,0.54868169]
[1737491948965,0.18818729,106320.0,106310.0,0.54868169]
[1737491949758,8.629e-05,106320.0,106310.0,0.67602032]
[1737491950263,8.629e-05,106320.0,106310.0,0.54868169]
[1737491950666,0.11063218,106320.0,106310.0,0.54868169]
[1737491952656,0.11063218,106320.0,106310.0,0.67602032]
[1737491953068,0.29873318,106320.0,106310.0,0.55868169]
[1737491955468,0.18818729,106320.0,106310.0,0.55868169]
[1737491956375,8.629e-05,106320.0,106310.0,0.68602032]
[1737491957260,8.629e-05,106320.0,106310.0,0.78008042]
[1737491963165,8.629e-05,106320.0,106310.0,0.94628042]
[1737491963567,0.08286124,106330.0,106320.0,0.188101]
[1737491963870,0.08286124,106330.0,106320.0,0.67623963]
[1737491964467,0.44366124,106330.0,106320.0,0.41949973]
[1737491964771,0.188137,106300.0,106290.0,0.00189094]
[1737491964963,0.188154,106290.0,106280.0,0.16845138]
[1737491965276,0.78889263,106290.0,106280.0,0.16845138]
[1737491965463,0.188172,106280.0,106270.0,0.22479656]
[1737491965665,0.67631063,106280.0,106270.0,0.22479656]
[1737491966178,0.67631063,106280.0,106270.0,0.27942458]
[1737491966570,0.188172,106280.0,106270.0,0.27942458]
[1737491966760,0.188172,106280.0,106270.0,0.64022458]
[1737491967875,0.188172,106280.0,106270.0,0.82841458]
[1737491968670,0.188172,106280.0,106270.0,0.95575321]
[1737491968875,0.35799861,106290.0,106280.0,0.188172]
[1737491969064,0.00014061,106290.0,106280.0,0.67631063]
[1737491969473,0.1380439,106290.0,106280.0,0.67631063]
[1737491969870,0.3262069,106290.0,106280.0,0.548972]
[1737491970169,0.188172,106280.0,106270.0,0.548984]
[1737491970773,0.188172,106280.0,106270.0,1.898984]
[1737491972780,0.27095483,106280.0,106270.0,1.898984]
[1737491974278,0.27095483,106280.0,106270.0,0.548984]
[1737491974867,0.18819,106270.0,106260.0,0.0002463]
[1737491975171,0.188225,106250.0,106240.0,0.00141177]
[1737491975568,0.188225,106250.0,106240.0,0.6777934]
[1737491975879,0.188213,106260.0,106250.0,0.18822]
[1737491976073,0.18828973,106260.0,106250.0,0.67635863]
[1737491976275,0.18828973,106260.0,106250.0,1.89902]
[1737491976475,0.18828973,106260.0,106250.0,0.3608]
[1737491976680,0.18828973,106260.0,106240.0,0.55054249]
[1737491976874,0.18828973,106260.0,106250.0,0.549025]
[1737491978470,0.18828973,106260.0,106250.0,0.3608]
[1737491978867,0.18828973,106260.0,106250.0,0.549025]
[1737491979067,7.673e-05,106260.0,106240.0,0.36230549]
[1737491979281,0.31556363,106250.0,106240.0,0.19150549]
[1737491979781,0.31556363,106250.0,106240.0,0.55230549]
[1737491980182,0.188225,106250.0,106240.0,0.55230549]
[1737491980484,0.188225,106250.0,106240.0,0.19150549]
[1737491980678,0.188225,106250.0,106240.0,0.55230549]
[1737491980869,0.356325,106250.0,106240.0,0.55230549]
[1737491981267,0.356325,106250.0,106240.0,0.36230549]
[1737491981472,0.188225,106250.0,106240.0,0.55054849]
[1737491981875,0.188225,106250.0,106240.0,1.90054849]
[1737491983979,0.188225,106250.0,106240.0,0.55054849]
[1737491986574,0.188225,106250.0,106240.0,0.67788712]
[1737491986877,0.27107056,106260.0,106250.0,0.188225]
[1737491987180,0.27107056,106260.0,106250.0,0.549025]
[1737491987676,0.27107056,106260.0,106250.0,0.3608]
[1737491987986,0.18828773,106260.0,106250.0,0.3608]
[1737491988285,0.48821536,106260.0,106240.0,0.00150549]
[1737491988589,0.85633862,106250.0,106240.0,0.00150549]
[1737491988882,0.72899999,106250.0,106240.0,9.372e-05]
[1737491989187,0.36819999,106250.0,106240.0,0.54913672]
[1737491989371,0.18829999,106250.0,106240.0,0.67647535]
[1737491989680,0.19330055,106270.0,106250.0,0.047056]
[1737491989880,0.38149055,106270.0,106260.0,1.03714563]
[1737491990277,0.19330055,106270.0,106260.0,1.03714563]
[1737491990673,0.11051772,106270.0,106260.0,1.03714563]
[1737491991575,0.29870772,106270.0,106260.0,0.549007]
[1737491991774,0.42604635,106270.0,106260.0,0.3608]
[1737491991980,0.54734635,106270.0,106260.0,0.3608]
[1737491992188,0.42000772,106270.0,106260.0,0.3608]
[1737491992371,0.23181772,106270.0,106240.0,1.94279372]
[1737491992577,0.188225,106250.0,106240.0,2.20103072]
[1737491992883,0.188225,106250.0,106240.0,2.56183072]
[1737491993088,0.188225,106250.0,106240.0,2.68916935]
[1737491993882,0.27886772,106270.0,106250.0,0.188216]
[1737491993883,0.188216,106260.0,106250.0,0.188216]
[1737491994084,0.188216,106260.0,106250.0,0.549016]
[1737491998480,0.29859311,106260.0,106250.0,0.549016]
[1737491998986,0.11037711,106260.0,106250.0,0.67635463]
[1737492000181,0.11037711,106260.0,106250.0,0.68635463]
[1737492000382,0.11037711,106260.0,106250.0,0.78046784]
[1737492000688,0.11037711,106260.0,106250.0,0.3608]
[1737492000689,0.29858411,106260.0,106250.0,0.3608]
[1737492000891,0.42592274,106260.0,106250.0,0.3608]
[1737492001089,0.29858411,106260.0,106250.0,0.549025]
[1737492001391,0.11037711,106260.0,106250.0,0.549025]
[1737492001581,0.29858411,106260.0,106250.0,0.549025]
[1737492002087,0.11037711,106260.0,106250.0,0.68636363]
[1737492002287,0.11037711,106260.0,106250.0,0.78047684]
[1737492003786,0.11037711,106260.0,106250.0,0.65313821]
[1737492005684,0.08329114,106260.0,106250.0,0.78047684]
[1737492006797,0.08329114,106260.0,106250.0,2.13047684]
[1737492007990,0.08329114,106260.0,106250.0,2.138359]
[1737492008695,1.4e-07,106260.0,106250.0,2.24363686]
[1737492008881,0.19207849,106310.0,106280.0,0.3608]
[1737492009087,0.19207849,106310.0,106300.0,1.03707463]
[1737492009288,0.38519876,106350.0,106300.0,1.03331026]
[1737492009486,0.57325376,106350.0,106340.0,0.67620463]
[1737492009792,0.57325376,106350.0,106340.0,0.548866]
[1737492009988,0.55717045,106350.0,106340.0,0.67620463]
[1737492011601,0.43497045,106350.0,106340.0,0.67620463]
[1737492013394,0.06304061,106360.0,106340.0,0.48813863]
[1737492013701,0.18817361,106360.0,106350.0,0.67618663]
[1737492013998,0.00014061,106360.0,106350.0,0.67618663]
[1737492015686,0.18817061,106360.0,106350.0,0.3608]
[1737492015890,0.188048,106350.0,106340.0,0.3608]
[1737492016096,0.249548,106350.0,106340.0,0.3608]
[1737492016597,0.249548,106350.0,106340.0,0.48813863]
[1737492016797,0.249548,106350.0,106340.0,0.3608]
[1737492017998,0.249548,106350.0,106340.0,0.548866]
[1737492019499,0.37688663,106350.0,106340.0,0.3608]
[1737492020801,0.188066,106340.0,106330.0,0.36094061]
[1737492021095,0.31540463,106340.0,106330.0,0.36094061]
[1737492021300,0.188066,106340.0,106330.0,0.36094061]
[1737492021596,0.31540463,106340.0,106330.0,0.00014061]
[1737492021798,0.67620463,106340.0,106330.0,0.00014061]
[1737492022004,0.67620463,106340.0,106300.0,0.3608]
[1737492022005,0.188119,106310.0,106300.0,0.3608]
[1737492022296,0.188119,106310.0,106290.0,0.22446048]
[1737492022297,0.188136,106300.0,106290.0,0.22446048]
[1737492022597,0.188136,106300.0,106290.0,1.71091522]
[1737492022999,0.188136,106300.0,106290.0,1.35011522]
[1737492023196,0.67627463,106300.0,106290.0,0.00011522]
[1737492023794,0.548936,106300.0,106290.0,0.00011522]
[1737492023994,0.67627463,106300.0,106290.0,0.00011522]
[1737492025895,0.188136,106300.0,106290.0,0.00011522]
[1737492026099,0.188136,106300.0,106290.0,0.18826922]
[1737492026497,0.188136,106300.0,106290.0,0.54906922]
[1737492027603,0.19067924,106310.0,106290.0,0.54906922]
[1737492027804,0.25146261,106310.0,106300.0,0.3608]
[1737492028000,0.25146261,106310.0,106300.0,0.548936]
[1737492028206,0.18826261,106310.0,106300.0,0.548936]
[1737492028906,0.18826261,106310.0,106300.0,0.188136]
[1737492029207,0.18826261,106310.0,106300.0,0.548936]
[1737492031303,0.00014061,106310.0,106300.0,0.548936]
[1737492031699,0.18825961,106310.0,106300.0,0.548936]
[1737492034795,0.188136,106300.0,106290.0,0.00011522]
[1737492035001,0.48822712,106300.0,106280.0,9.372e-05]
[1737492035197,0.67629263,106290.0,106280.0,9.372e-05]
[1737492035609,0.73799263,106290.0,106280.0,9.372e-05]
[1737492035900,0.610654,106290.0,106280.0,9.372e-05]
[1737492036102,0.61073737,106290.0,106280.0,9.372e-05]
[1737492038209,0.738076,106290.0,106280.0,9.372e-05]
[1737492038513,0.73799263,106290.0,106280.0,9.372e-05]
[1737492039009,0.6107327,106290.0,106280.0,9.372e-05]
[1737492039399,0.1882327,106290.0,106280.0,9.372e-05]
[1737492039602,0.1882327,106290.0,106280.0,0.18826572]
[1737492039798,0.68443315,106290.0,106280.0,9.372e-05]
[1737492040003,0.68435445,106290.0,106280.0,9.372e-05]
[1737492040707,0.68442768,106290.0,106280.0,9.372e-05]
[1737492040912,0.68435445,106290.0,106280.0,9.372e-05]
[1737492041312,0.68435445,106290.0,106260.0,0.28]
[1737492041313,0.18819,106270.0,106260.0,0.28]
[1737492041502,1.03712863,106270.0,106260.0,0.28]
[1737492041813,1.09621099,106270.0,106260.0,0.28]
[1737492046209,1.09612863,106270.0,106260.0,0.28]
[1737492046611,0.54910273,106270.0,106260.0,0.28]
[1737492047018,0.54910273,106270.0,106260.0,1.63]
[1737492047212,0.18830273,106270.0,106260.0,1.7512]
[1737492047915,0.18830273,106270.0,106260.0,1.8136]
[1737492048109,0.18830273,106270.0,106260.0,2.1744]
[1737492048314,0.00014061,106280.0,106260.0,2.30173863]
[1737492048609,0.13801173,106290.0,106280.0,0.188172]
[1737492048610,0.16524907,106290.0,106280.0,0.188172]
[1737492048810,0.16524907,106290.0,106280.0,0.67631063]
[1737492049003,0.00141216,106300.0,106290.0,0.188154]
[1737492049207,0.188126,106310.0,106290.0,0.67629263]
[1737492049418,0.188126,106310.0,106300.0,0.059]
[1737492052210,0.188126,106310.0,106300.0,0.1212]
[1737492052410,0.48813863,106310.0,106290.0,0.41874061]
[1737492052619,0.31547463,106300.0,106290.0,0.41874061]
[1737492052819,0.188136,106300.0,106290.0,0.41874061]
[1737492055709,0.59466763,106310.0,106300.0,0.188136]
[1737492055710,0.188124,106310.0,106300.0,0.188136]
[1737492055922,0.13819935,106320.0,106300.0,0.54853863]
[1737492056114,0.26553798,106320.0,106300.0,0.4212]
[1737492056316,0.188119,106310.0,106300.0,0.4212]
[1737492057115,0.13819935,106320.0,106300.0,0.4212]
[1737492057314,0.13819935,106320.0,106310.0,0.67625763]
[1737492057520,0.32630035,106320.0,106310.0,0.67625763]
[1737492057920,0.32630035,106320.0,106310.0,0.548919]
[1737492058315,0.13819935,106320.0,106310.0,1.898919]
[1737492058716,0.32630035,106320.0,106310.0,1.898919]
[1737492059328,0.18824161,106320.0,106310.0,1.898919]
[1737492060219,0.00014061,106320.0,106310.0,1.898919]
[1737492060616,0.00141131,106340.0,106310.0,2.04166794]
[1737492060924,0.18947731,106340.0,106330.0,0.909683]
[1737492061121,0.18947731,106340.0,106330.0,0.7216]
[1737492061317,0.18947731,106340.0,106320.0,0.1229]
[1737492061318,0.188083,106330.0,106320.0,0.4837]
[1737492063522,0.188083,106330.0,106320.0,0.671801]
[1737492064120,0.188083,106330.0,106320.0,0.3608]
[1737492064423,0.188101,106320.0,106310.0,0.67638924]
[1737492065026,0.67623963,106320.0,106310.0,0.00014061]
[1737492065219,0.047032,106310.0,106270.0,0.65329398]
[1737492065528,0.188139,106300.0,106290.0,0.31548263]
[1737492065729,0.638556,106320.0,106290.0,0.48813863]
[1737492065925,0.188128,106310.0,106300.0,0.548936]
[1737492066122,0.73261,106320.0,106310.0,0.188119]
[1737492066324,0.73275061,106320.0,106310.0,0.188119]
[1737492066730,0.74114555,106320.0,106310.0,0.188119]
[1737492067324,0.61095061,106320.0,106310.0,0.188119]
[1737492067524,0.00014061,106320.0,106310.0,0.67625763]
[1737492067928,0.18824161,106320.0,106310.0,0.548919]
[1737492071821,0.188119,106310.0,106300.0,0.00886589]
[1737492072026,0.188136,106300.0,106290.0,0.00014061]
[1737492072732,0.548936,106300.0,106290.0,0.00014061]
[1737492072930,0.67627463,106300.0,106290.0,0.00014061]
[1737492074332,0.188172,106280.0,106270.0,1.35141135]
[1737492074834,0.188172,106280.0,106270.0,0.00141135]
[1737492075033,0.188172,106280.0,106270.0,0.18960035]
[1737492075644,0.188172,106280.0,106270.0,0.19060035]
[1737492076529,0.188172,106280.0,106270.0,0.55140035]
[1737492076731,0.18830161,106290.0,106280.0,0.188172]
[1737492077737,0.00014061,106290.0,106280.0,0.548972]
[1737492077930,0.00014061,106290.0,106280.0,0.67631063]
[1737492078448,0.00014061,106290.0,106280.0,0.548972]
[1737492078731,0.00014061,106290.0,106280.0,0.609272]
[1737492082636,0.00014061,106290.0,106280.0,0.83069728]
[1737492082834,0.11045299,106300.0,106290.0,0.188154]
[1737492083143,0.43800991,106310.0,106290.0,0.48813863]
[1737492083339,0.43800991,106310.0,106300.0,0.548936]
[1737492083534,0.00141168,106310.0,106300.0,0.548936]
[1737492083939,0.18953068,106310.0,106300.0,1.898936]
[1737492084437,0.188136,106300.0,106290.0,0.00114061]
[1737492084633,0.80327463,106300.0,106290.0,0.00114061]
[1737492084834,0.80327463,106300.0,106290.0,0.00014061]